Cogmind - Beta 13 @@@ ROGUE MODE // 2024.03.30 @ 19:08:53 Player: Vanta Result: Destroyed by C-40 Crusher with Compactor Performance ------------- Evolutions (3) 1500 Regions Visited (6) 1200 Robots Destroyed (50) 250 Value Destroyed (1643) 1643 Prototype IDs (4) 80 Alien Tech Used (0) 0 Bonus (-152) -152 TOTAL SCORE: 4521 Bonus ------- High Alert Combat Kills 22 Follower Combat Kills 30 Friendly Fire -204 Cogmind --------- Core Integrity 0/700 Matter 127/300 Energy 100/100 System Corruption 16% Temperature Cool (0) Movement Core (50) Location -7/Waste Parts ------- > --- POWER (2) -------- (None) > --- PROPULSION (2) --- (None) > --- UTILITY (5) ------ (None) > --- WEAPON (4) ------- (None) > --- INVENTORY (5) ---- (None) Peak State ------------ > --- POWER ------------ Light Nuclear Core > --- PROPULSION ------- Aerolev Unit Aerolev Unit > --- UTILITY ---------- Improved Terrain Scan Processor Targeting Computer Improved Light Armor Plating > --- WEAPON ----------- Advanced Beam Rifle Rocket Launcher Rocket Launcher > --- INVENTORY -------- Terrain Scanner EM Pulse Gun Beam Rifle Gauss Rifle Rocket Launcher [Rating: 27] Favorites ----------- Power Ion Engine Engine Ion Engine Power Core Light Nuclear Core Propulsion Aluminum Leg Treads Light Treads Leg Aluminum Leg Wheel Wheel Hover Unit Aerolev Unit Utility Targeting Computer Device Improved Sensor Array Storage High-capacity Storage Unit Processor Targeting Computer Protection Improved Light Armor Plating Weapon Rocket Launcher Energy Gun Advanced Beam Rifle Ballistic Gun Light Assault Rifle Ballistic Cannon Battle Cannon Launcher Rocket Launcher Build | -11 -10 -10 -10 -8 -7 -7 ------- Run | Yrd Mat Min Sub Mat Fac Was Slots Evolved 6 | . . . . 4 2 . Power 1 | . . . . 1 . . Propulsion . | . . . . . . . Utility 3 | . . . . 2 1 . Weapon 2 | . . . . 1 1 . Parts Attached 37 | 5 4 3 2 19 4 . Power 4 | 1 1 . . 2 . . Engine 3 | 1 1 . . 1 . . Core 1 | . . . . 1 . . Reactor . | . . . . . . . Propulsion 10 | 2 . 2 . 6 . . Treads 2 | . . . . 2 . . Leg 2 | . . 2 . . . . Wheel 4 | 2 . . . 2 . . Hover 2 | . . . . 2 . . Flight . | . . . . . . . Utility 8 | . 2 . . 5 1 . Device 2 | . . . . 2 . . Storage 1 | . . . . . 1 . Processor 3 | . 2 . . 1 . . Hackware . | . . . . . . . Protection 2 | . . . . 2 . . Artifact . | . . . . . . . Weapon 15 | 2 1 1 2 6 3 . Energy Gun 4 | 1 . . 1 1 1 . Energy Cannon . | . . . . . . . Ballistic Gun 3 | 1 . . . 1 1 . Ballistic Cannon 2 | . . . 1 1 . . Launcher 6 | . 1 1 . 3 1 . Special Weapon . | . . . . . . . Impact Weapon . | . . . . . . . Slashing Weapon . | . . . . . . . Piercing Weapon . | . . . . . . . Special Melee Weapon . | . . . . . . . Unidentified Prototypes 2 | . . . . 2 . . Parts Lost 26 | . 1 1 2 20 . 2 Power 3 | . . . . 3 . . Propulsion 6 | . 1 1 . 4 . . Utility 6 | . . . . 6 . . Weapon 11 | . . . 2 7 . 2 Highest Loss Streak 9 | . 1 2 2 9 . 2 To Critical Strikes 1 | . . . . 1 . . Average Slot Usage (%) 63 | . 89 88 95 63 28 12 Engine 4 | . 14 14 14 1 . . Core 1 | . . . . 2 . . Treads 1 | . . . . 3 . . Leg 5 | . . 16 28 1 . . Wheel 2 | . 27 . . 2 . . Hover 2 | . . . . 3 . . Storage 1 | . . . . . 6 3 Processor 15 | . 18 28 28 15 . . Protection 4 | . . . . 8 . . Energy Gun 6 | . . . 6 9 6 3 Ballistic Gun 5 | . 14 5 . 5 6 3 Ballistic Cannon 1 | . . . 9 1 . . Launcher 9 | . 13 22 9 6 6 3 Naked Turns 96 | . . . . 4 12 80 Heaviest Build 51 | 6 9 12 13 24 51 51 Greatest Support 20 | 20 20 20 20 20 3 3 Greatest Overweight (x) 16 | . . 2 . 5 16 16 Average Overweight (x) . | . . . . . 11 . Largest Inventory Capacity 20 | 5 5 5 5 5 20 20 Average Capacity 7 | 5 5 5 5 5 19 11 Most Carried 5 | 5 5 4 5 5 4 2 Average Carried 2 | 2 3 2 4 3 . . Final Capacity 20 | 5 5 5 5 5 20 5 Final Carried 5 | 5 3 2 4 3 . . Class Distribution -------------------- 55% | Mutant 26% | Gunner 15% | Bomber Dominant Class ---------------- Mutant | -10/Materials Mutant | -10/Mines Mutant | -10/Subcaves Gunner | -8/Materials Bomber | -7/Factory Mutant | -7/Waste Resources | -11 -10 -10 -10 -8 -7 -7 ----------- Run | Yrd Mat Min Sub Mat Fac Was Matter Collected 1172 | 258 79 30 108 647 50 . Remotely . | . . . . . . . Salvage Created 1803 | 45 45 . 174 1085 125 329 Parts 111 | 2 7 . 10 75 12 5 Haulers Intercepted 1 | . . . . 1 . . Recyclers Shooed . | . . . . . . . Parts Field Recycled . | . . . . . . . Retrieved Matter . | . . . . . . . Parts Self-Destructed 6 | . . . 6 . . . Prevented . | . . . . . . . Kills | -11 -10 -10 -10 -8 -7 -7 ------- Run | Yrd Mat Min Sub Mat Fac Was Combat Hostiles Destroyed 34 | 1 1 . 6 22 3 1 Guns 16 | 1 . . . 12 3 . Cannons 8 | . . . 1 7 . . AOE 10 | . 1 . 5 3 . 1 Classes Destroyed 14 | 1 2 . 1 8 1 1 Worker 3 | . . . . 2 1 . Builder 2 | . . . . 2 . . Tunneler 3 | . 1 . . 1 1 . Hauler 1 | . . . . 1 . . Recycler 2 | . . . . 2 . . Watcher 5 | . 1 . . 4 . . Swarmer 4 | . . . . 4 . . Grunt 12 | 1 1 . . 8 2 . Brawler 1 | . . . . 1 . . Sentry 6 | . . . . 6 . . Hunter 3 | . . . . 3 . . Programmer 1 | . . . . . 1 . Compactor 1 | . . . . . . 1 Subdweller 6 | . . . 6 . . . Best Kill Streak 7 | 1 2 . 5 7 3 1 Combat Bots Only 6 | 1 1 . 5 6 2 1 Max Kills in Single Turn 4 | 1 2 . 3 4 2 1 Gunslinging . | . . . . . . . Exploded 3 | . 1 . 3 2 . 1 Melee . | . . . . . . . Uniques/NPCs Destroyed . | . . . . . . . Combat | -11 -10 -10 -10 -8 -7 -7 -------- Run | Yrd Mat Min Sub Mat Fac Was Hostile Shots Fired 167 | 9 3 2 16 106 14 17 Missed 41 | 1 1 1 7 27 2 2 Damage Taken 3030 | 86 77 9 240 1707 225 686 Core 1154 | 31 . . 15 373 68 667 Absorbed by Shields . | . . . . . . . Regen/Repaired (Parts) 87 | . . . . 87 . . Core Remaining (%) 66 | 87 . . 81 32 . . Volleys Fired 95 | 8 4 . 12 57 7 7 Largest 3 | 2 2 . 2 3 3 3 Hottest 134 | 60 50 . 114 134 117 117 Shots Fired 228 | 16 8 . 16 146 21 21 Gun 139 | 16 4 . 2 89 14 14 Cannon 32 | . . . 9 23 . . Launcher 57 | . 4 . 5 34 7 7 Special . | . . . . . . . Kinetic 99 | 8 4 . 9 64 7 7 Thermal 64 | . . . 2 48 7 7 Explosive 57 | . 4 . 5 34 7 7 Electromagnetic 8 | 8 . . . . . . Robot Hit Streak 10 | 6 4 . 8 10 7 10 Robot Miss Streak 7 | 2 1 . 1 7 2 1 Penetration Max . | . . . . . . . Secondary Targets . | . . . . . . . Shots Hit Robots 139 | 11 6 . 10 81 12 19 Core Hits 108 | 3 5 . 12 65 9 14 Critical Kills 1 | . . . . 1 . . Critical Parts Destroyed 1 | . . . . . 1 . Critical Strikes 6 | 1 . . . 2 2 1 Burn 3 | . . . . 1 1 1 Destroy 2 | . . . . 1 1 . Corrupt 1 | 1 . . . . . . Melee Attacks . | . . . . . . . Impact . | . . . . . . . Slashing . | . . . . . . . Piercing . | . . . . . . . Sneak Attacks . | . . . . . . . Combat Hostiles . | . . . . . . . Follow-up Attacks . | . . . . . . . Damage Inflicted 5677 | 110 246 . 1313 2295 455 1258 Guns 1492 | 110 28 . . 880 228 246 Cannons 393 | . . . 131 262 . . Explosions 3727 | . 218 . 1182 1143 227 957 Melee . | . . . . . . . Ramming 65 | . . . . 10 . 55 Kinetic 901 | 46 28 . 131 434 120 142 Thermal 920 | . . . . 708 108 104 Explosive 3727 | . 218 . 1182 1143 227 957 Electromagnetic 64 | 64 . . . . . . Impact . | . . . . . . . Slashing . | . . . . . . . Piercing . | . . . . . . . Highest Corruption 16 | . . . . 3 . 16 Average Corruption 3 | . . . . 2 . 10 Corruption Purged . | . . . . . . . Corruption Blocked . | . . . . . . . Effects 34 | . . . . 29 . 5 Message Errors 7 | . . . . 6 . 1 Matter Fused 9 | . . . . 9 . . Heat Flow Errors 4 | . . . . 3 . 1 Energy Discharges 3 | . . . . 3 . . Parts Fused 1 | . . . . 1 . . Data Loss (minor) 2 | . . . . 1 . 1 Data Loss (major) 6 | . . . . 5 . 1 Misdirections 1 | . . . . . . 1 Weapon Failures 1 | . . . . 1 . . Overload Shots . | . . . . . . . Overflow Damage 49 | . . . . 36 13 . Projectiles . | . . . . . . . Explosions 49 | . . . . 36 13 . Melee . | . . . . . . . Knockbacks 6 | . . . 3 3 . . Impact . | . . . . . . . Kinetic 6 | . . . 3 3 . . Secondary . | . . . . . . . Self-Inflicted Damage 414 | . 22 . 56 278 35 23 Shots 14 | . 1 . 3 9 1 . Rammed 20 | . . . . 2 . 18 Targets Rammed 20 | . . . . 2 . 18 Kicked . | . . . . . . . Crushed . | . . . . . . . Highest Temperature 315 | 108 32 . . 315 63 134 Average Temperature 83 | 56 14 . . 98 29 39 Received Heat Transfer 432 | 48 12 . 30 261 81 . Effects 8 | . . . . 8 . . Energy Bleed 2 | . . . . 2 . . Interference 6 | . . . . 6 . . Siege Activations . | . . . . . . . Robots Corrupted . | . . . . . . . Combat Hostiles . | . . . . . . . Parts Fried . | . . . . . . . Impact Corruptions . | . . . . . . . Robots Melted . | . . . . . . . Combat Hostiles . | . . . . . . . Parts Melted 3 | . . . 1 1 1 . Heat Transferred 2035 | . . . . 1369 333 333 Parts Sabotaged . | . . . . . . . Parts Stolen . | . . . . . . . Parts Stripped . | . . . . . . . Power Chain Reactions . | . . . . . . . Alert | -11 -10 -10 -10 -8 -7 -7 ------- Run | Yrd Mat Min Sub Mat Fac Was Peak Influence 589 | 20 74 33 . 589 235 76 Initial 235 | . 13 28 . . 235 58 Average 171 | 14 26 28 . 239 199 49 Maximum Alert Level 2 | . . . . 2 1 . Low Security (%) 52 | 100 100 100 . 34 27 100 Level 1 41 | . . . . 55 72 . Level 2 5 | . . . . 10 . . Level 3 . | . . . . . . . Level 4 . | . . . . . . . Level 5 . | . . . . . . . High Security . | . . . . . . . Max Security . | . . . . . . . Squads Dispatched 10 | . 1 . . 7 2 . Investigation 7 | . 1 . . 6 . . Extermination 1 | . . . . . 1 . Reinforcement 2 | . . . . 1 1 . Assault . | . . . . . . . Garrison . | . . . . . . . Intercept . | . . . . . . . Searches Triggered . | . . . . . . . Construction Impeded . | . . . . . . . Haulers Reinforced . | . . . . . . . Active Scanning Responses . | . . . . . . . Cargo Convoy Interrupts . | . . . . . . . Stealth | -11 -10 -10 -10 -8 -7 -7 --------- Run | Yrd Mat Min Sub Mat Fac Was Distress Signals 2 | . . . . 2 . . Communications Jammed . | . . . . . . . Distress Signals . | . . . . . . . Times Spotted 72 | 1 2 3 11 47 3 5 Peak Tracking Total 9 | 1 1 3 7 9 2 5 Tactical Retreats 4 | . . 1 . 3 . . Traps | -11 -10 -10 -10 -8 -7 -7 ------- Run | Yrd Mat Min Sub Mat Fac Was Traps Triggered 2 | . . . . 1 1 . Indirectly . | . . . . . . . Trap Hack Attempts . | . . . . . . . Triggered . | . . . . . . . Disarmed 6 | . . . . 6 . . Reprogrammed . | . . . . . . . Reused . | . . . . . . . Traps Extracted . | . . . . . . . Installed . | . . . . . . . Triggered . | . . . . . . . Machines | -11 -10 -10 -10 -8 -7 -7 ---------- Run | Yrd Mat Min Sub Mat Fac Was Machines Disabled 11 | . 2 . . 9 . . Max in Single Turn 2 | . 2 . . 1 . . Machines Repaired . | . . . . . . . Machines Dismantled . | . . . . . . . Machines Sabotaged . | . . . . . . . Overloaded Fab Kills . | . . . . . . . Hacking | -11 -10 -10 -10 -8 -7 -7 --------- Run | Yrd Mat Min Sub Mat Fac Was Machines Accessed 9 | . 1 . . 8 . . Terminals 7 | . . . . 7 . . Fabricators . | . . . . . . . Repair Stations 1 | . . . . 1 . . Recycling Units 1 | . 1 . . . . . Scanalyzers . | . . . . . . . Garrison Access . | . . . . . . . Total Hacks 37 | . 6 . . 31 . . Successful 21 | . 5 . . 16 . . Failed 15 | . 1 . . 14 . . Catastrophic 1 | . . . . 1 . . Database Lockouts 1 | . . . . 1 . . Manual 5 | . . . . 5 . . Terminals 29 | . . . . 29 . . Fabricators . | . . . . . . . Repair Stations 2 | . . . . 2 . . Recycling Units 6 | . 6 . . . . . Scanalyzers . | . . . . . . . Garrison Access . | . . . . . . . Terminal Hacks 14 | . . . . 14 . . Record 4 | . . . . 4 . . Prototype ID Bank 1 | . . . . 1 . . Branch Access Points 1 | . . . . 1 . . Emergency Access Points 2 | . . . . 2 . . Alert Level 1 | . . . . 1 . . Disarm Traps 1 | . . . . 1 . . Maintenance Status 1 | . . . . 1 . . Patrol Status 1 | . . . . 1 . . Assault Status 1 | . . . . 1 . . Zone Layout 1 | . . . . 1 . . Fabricator Hacks . | . . . . . . . Repair Station Hacks 2 | . . . . 2 . . Scan Component 1 | . . . . 1 . . Repair 1 | . . . . 1 . . Recycling Unit Hacks 5 | . 5 . . . . . Recycle Component 2 | . 2 . . . . . Process 1 | . 1 . . . . . Report Inventory 2 | . 2 . . . . . Scanalyzer . | . . . . . . . Garrison Access Hacks . | . . . . . . . Unauthorized Hacks . | . . . . . . . Terminals . | . . . . . . . Fabricators . | . . . . . . . Repair Stations . | . . . . . . . Recycling Units . | . . . . . . . Scanalyzers . | . . . . . . . Garrison Access . | . . . . . . . Data Cores Recovered . | . . . . . . . Used . | . . . . . . . Hacking Detections 8 | . 1 . . 7 . . Full Trace Events 7 | . 1 . . 6 . . Feedback Events . | . . . . . . . Feedback Blocked . | . . . . . . . Robot Schematics Acquired . | . . . . . . . Robots Built . | . . . . . . . Authchips . | . . . . . . . Time . | . . . . . . . Total Robot Build Rating . | . . . . . . . Part Schematics Acquired . | . . . . . . . Parts Built . | . . . . . . . Authchips . | . . . . . . . Time . | . . . . . . . Total Part Build Rating . | . . . . . . . Parts Repaired 1 | . . . . 1 . . Time 26 | . . . . 26 . . Parts Recycled 2 | . 2 . . . . . Recycled Matter 123 | . 123 . . . . . Retrieved Matter . | . . . . . . . Retrieved Components . | . . . . . . . Parts Scanalyzed . | . . . . . . . Part Schematics Acquired . | . . . . . . . Parts Damaged . | . . . . . . . Bothacking | -11 -10 -10 -10 -8 -7 -7 ------------ Run | Yrd Mat Min Sub Mat Fac Was Used RIF Installer . | . . . . . . . Robots Hacked . | . . . . . . . Non-combat . | . . . . . . . Combat . | . . . . . . . Robot Hacks Applied . | . . . . . . . Relay Couplers Released . | . . . . . . . Fabnet Peak Effective % . | . . . . . . . Robots Rewired . | . . . . . . . Allies Hacked . | . . . . . . . Hacks Repelled . | . . . . . . . Allies | -11 -10 -10 -10 -8 -7 -7 -------- Run | Yrd Mat Min Sub Mat Fac Was Total Allies 3 | . . 2 . . . 1 Largest Group 2 | . . 2 2 1 . 1 Highest-Rated Group 41 | . . 41 41 10 . 31 Highest-Rated Ally 31 | . . 31 31 10 . 31 Total Orders . | . . . . . . . Ally Attacks 12 | . . . 5 . . 7 Total Damage 210 | . . . 84 . . 126 Kills 1 | . . . 1 . . . Allies Corrupted . | . . . . . . . Allies Melted . | . . . . . . . Intel | -11 -10 -10 -10 -8 -7 -7 ------- Run | Yrd Mat Min Sub Mat Fac Was Robot Analysis Total . | . . . . . . . Derelict Logs Recovered . | . . . . . . . Drone Launches . | . . . . . . . Drone Recoveries . | . . . . . . . Exploration | -11 -10 -10 -10 -8 -7 -7 ------------- Run | Yrd Mat Min Sub Mat Fac Was Turns Passed 3903 | 289 154 452 368 1944 554 142 Spaces Moved 2142 | 279 146 296 178 1044 81 118 Core 458 | 22 . 108 . 129 81 118 Treads 309 | . . . . 309 . . Legs 446 | . . 185 178 83 . . Wheels 637 | 257 146 3 . 231 . . Hover 292 | . . . . 292 . . Flight . | . . . . . . . Fastest Speed 50 | 50 80 80 120 50 50 50 Average Speed 136 | 77 80 130 120 132 642 83 Slowest Speed 850 | 80 80 150 120 300 850 850 Overloaded Moves . | . . . . . . . Propulsion Burnouts . | . . . . . . . Robots Hopped . | . . . . . . . Cave-ins Triggered . | . . . . . . . Exploration Rate (%) 24 | 8 25 43 8 53 3 34 Regions Visited 6 Branch Regions 2 Pre-discovered Areas . | . . . . . . . Known Exits Taken 3 | . 1 1 1 . . . Unknown Exits Taken 2 | 1 . . . 1 . . Scrap Searched 2 | . . 1 1 . . . Spaces Dug . | . . . . . . . Terrain Destroyed 340 | . 22 . 24 222 43 29 Melee . | . . . . . . . Projectile 3 | . . . . 3 . . AOE 337 | . 22 . 24 219 43 29 Terrain Rammed . | . . . . . . . Walls Destroyed . | . . . . . . . Machines Disabled . | . . . . . . . Actions | -11 -10 -10 -10 -8 -7 -7 --------- Run | Yrd Mat Min Sub Mat Fac Was Total 2943 | 336 176 361 316 1502 107 145 Wait 598 | 35 13 62 122 352 14 . Move 2138 | 278 145 295 177 1044 81 118 Hop . | . . . . . . . Pick Up 44 | 10 6 1 3 22 1 1 Fast Attach . | . . . . . . . Attach 33 | 5 2 2 2 18 4 . Detach 1 | . . . . 1 . . Swap 4 | . 2 1 . 1 . . Drop 11 | . 4 . . 6 . 1 Fire 95 | 8 4 . 12 57 7 7 Melee . | . . . . . . . Ram 19 | . . . . 1 . 18 Kick . | . . . . . . . Crush . | . . . . . . . Escape Stasis . | . . . . . . . Rewire . | . . . . . . . Trap . | . . . . . . . Miscellaneous . | . . . . . . . Route ------- -11/Scrapyard -10/Materials -10/Mines -10/Subcaves -8/Materials (discovered 2 exits: [*Fac x2]) -7/Factory -7/Waste History --------- Turn | Location | Event 2 | -11/Scrapyard | Met Revision 17 56 | -11/Scrapyard | Discovered new exit (range 8) 290 | -11/Scrapyard | Entered Materials 375 | -10/Materials | Build established: Mutant 396 | -10/Materials | Met 8R-AWN 416 | -10/Materials | Discovered new exit (range 11) 433 | -10/Materials | Identified exit to Mines 444 | -10/Materials | Entered Mines 445 | -10/Mines | Followed 8R-AWN into the Mines 620 | -10/Mines | Received a Rocket Launcher from a helpful Derelict 894 | -10/Mines | Discovered new exit (range 3) 895 | -10/Mines | Identified exit to Subcaves 896 | -10/Mines | Entered Subcaves 896 | -10/Subcaves | Accompanied by 2 allies 901 | -10/Subcaves | Led the pair of lost Derelicts to an unsafe place 931 | -10/Subcaves | Discovered new exit (range 15) 1011 | -10/Subcaves | Ambushed by swarm of Subdwellers 1011 | -10/Subcaves | Ambushed by Subdwellers from Twisted Machinery 1011 | -10/Subcaves | Ambushed by Subdwellers from Twisted Machinery 1011 | -10/Subcaves | Ambushed by Subdwellers from Twisted Machinery 1011 | -10/Subcaves | Ambushed by Subdwellers from Twisted Machinery 1011 | -10/Subcaves | Ambushed by Subdwellers from Twisted Machinery 1014 | -10/Subcaves | Ambushed by Subdwellers from Twisted Machinery 1263 | -10/Subcaves | Identified exit to Materials 1264 | -10/Subcaves | Entered Materials 1264 | -8/Materials | Accompanied by 1 ally 1264 | -8/Materials | Evolved 4 slots: Power x1, Utility x2, Weapon x1 1493 | -8/Materials | Lost 5 parts (1p1n1u2w) 2045 | -8/Materials | Repaired Lgt. Treads 2199 | -8/Materials | Discovered new exit (range 5) 2298 | -8/Materials | Build established: Gunner 2557 | -8/Materials | Lost 3 parts (1n2w) 2600 | -8/Materials | Central database locked down 2985 | -8/Materials | Discovered new exit (range 16) 3204 | -8/Materials | Core integrity fell below 50% 3208 | -8/Materials | Entered Factory 3208 | -7/Factory | Evolved 2 slots: Utility x1, Weapon x1 3235 | -7/Factory | Lost 9 parts (1p1n4u3w) 3510 | -7/Factory | Build established: Bomber 3762 | -7/Factory | Sucked down chute 3762 | -7/Factory | Entered Waste 3763 | -7/Waste | Met a frightened Derelict 3777 | -7/Waste | EMP discharged 3785 | -7/Waste | Spotted C-40 Crusher 3788 | -7/Waste | Destroyed C-40 Crusher 3796 | -7/Waste | Spotted C-40 Crusher 3806 | -7/Waste | Spotted C-40 Crusher 3809 | -7/Waste | Spotted C-40 Crusher 3824 | -7/Waste | Crushed by Compactor (1 part destroyed, 2 dropped) 3852 | -7/Waste | Spotted C-40 Crusher 3852 | -7/Waste | Spotted C-40 Crusher 3877 | -7/Waste | EMP discharged 3877 | -7/Waste | System corruption reached 10% 3892 | -7/Waste | Core integrity fell below 50% 3899 | -7/Waste | Core integrity fell below 20% 3904 | -7/Waste | Destroyed by C-40 Crusher with Compactor Last Messages --------------- Hcp. Storage Unit crushed. Gauss Rifle crushed. The unstable cave ceiling collapses. System corrupted: Substantial component data lost. The unstable cave ceiling collapses. Acquired Broken Smartbomb Launcher. The unstable cave ceiling collapses. Dropped Broken Smartbomb Launcher. The unstable cave ceiling collapses. System corrupted: Component data lost. ALERT: Foreign system detected. Charging EMP. Broken Imp. Shield Generator fried beyond repair. System corrupted (+7). [Achievement: System Compromised] Slammed into C-40 Crusher. System corrupted: Heat flow error (+168). Slammed into C-40 Crusher. [Achievement: First Step to Greatness] Map ----- +----------------------------------------------------+ | ?????????????????????????????????????????????????? | | ?????????????????????????????????????????????????? | | ?????????????????????????????????????????????????? | | ?????????????????????????????????????????????????? | | ?????????????????????????????????????????????????? | | ?????????????????????????????????????????????????? | | ?????????????????????????????????????????????????? | | ?????????????????????????????????????????????????? | | ?????????????????????????????????????????????????? | | ?????????????????????????????????????????????????? | | ?????????????????????????????????????????????????? | | ?????????????????????????????????????????????????? | | ?????????????????????????????????????????????????? | | ???????????????????##########????????????????????? | | ???????????????????# #????????????????????? | | ???????????????????# #????????????????????? | | ???????????????????# #????????????????????? | | ???????????????????# #????????????????????? | | ???????????????????# #????????????????????? | | ???????????????????# #????????????????????? | | ???????????????????# CC #????????????????????? | | ???????????????????# CC #????????????????????? | | ???????????????????### CC###????????????????????? | | ?????????????????????# CC#??????????????????????? | | ?????????????????????# CC #??????????????????????? | | ?????????????????????# CC@#??????????????????????? | | ???????????????????###CCCC#??????????????????????? | | ???????????????????# CCCC#??????????????????????? | | ???????????????????# #??????????????????????? | | ???????????????????# #??????????????????????? | | ???????????????????# #??????????????????????? | | ???????????????????### #??????????????????????? | | ?????????????????????# #??????????????????????? | | ?????????????????????# #??????????????????????? | | ?????????????????????# #????????? #??????????? | | ???????????????????### ######## #??????????? | | ???????????????????# #??????????? | | ???????????????????# #??????????? | | ???????????????????# #??????????? | | ???????????????????# #??????????? | | ????????????????###### ####### #??????????? | | ???????########## ### ##??????? #??????????? | | ???????# # #????????????????????? | | ???????# #????????????????????? | | ???????# ## #????????????????????? | | ???????# # #????????????????????? | | ???????# ##????????????????????? | | ???????# #?????????????????????? | | ???????# ##?????????????????????? | | ???????# ## #??????????????????????? | +----------------------------------------------------+ Best States ------------- Heat Dissipation 34 Energy Generation 14 Energy Capacity 265 Matter Stores 300 Matter Capacity 300 Sight Range 16 Robot Scan Range 15 Terrain Scan Range 14 Terrain Scan Density 110 Armor Coverage 300 Evasion (%) 55 Targeting Accuracy 5 Recoil Reduction 1 Item Schematics ----------------- None Robot Schematics ------------------ None Fabricated ------------ Nothing Alien Tech Used ----------------- None Achievements -------------- Crack Shot First Step to Greatness Loot Pinata Made in Tau Ceti IV One Hack Too Far Part-time Mechanic Party Time Remodeling Risk Taker Storm Trooper System Compromised Uninvited Guest Challenges ------------ None Game ------ Seed GlidesysNeutronUnit Manual? 0 Play Time 00:58:13 Cumulative 0.9 hours Start 2024.03.30 @ 18:10:32 End 2024.03.30 @ 19:08:53 Sessions 1 Manual Loads 0 Difficulty Rogue Special Mode None Game No. 1 Rogue 1 Adventurer 0 Explorer 0 Win Type - Total 0 Types 0/0/0/0/0/0/0/0/0 Lore% 0 Gallery% 2 Achievement% 4 Wizard Run 0 Options --------- Layout 1 ASCII 0 Keyboard 1 Movement Numpad Keybinds 0 Fullscreen 1 Font 32/CogWide Map View 50x40 Zoom Use 0% Tactical HUD 0 Map Filters NONE Filters NONE Steam 1 RUN: d1103dca-8d50-4961-a053-49943d6b70fb